[Event "2nd Bassano Easter 2022"]
[Site "Bassano del Grappa"]
[Date "2022.04.15"]
[Round "1.6"]
[White "Bosiocic, Marin"]
[Black "Hercegovac, Neven"]
[Result "1-0"]
[ECO "A57"]
[WhiteElo "2522"]
[BlackElo "2062"]
[Annotator "TA"]
[PlyCount "65"]
[EventDate "2022.04.14"]
[EventType "swiss"]
[EventCountry "ITA"]
[SourceTitle "playchess.com"]
[Source "ChessBase"]
[SourceQuality "1"]
[TimeControl "30/3600+30:1800+30"]

{[%evp 16,65,27,24,44,21,12,18,26,9,27,0,0,0,0,0,0,0,0,0,0,-231,-233,-279,-267,-292,-303,-347,-346,-346,-346,-342,-342,-348,-150,-171,41,54,1886,1860,1825,1799,29977,29978,29966,29978,29986,29987,29986,29978,5318,5289]} 1. d4 {[%emt 0:00:02]} Nf6 {[%emt 0:00:07]} 2. c4 {[%emt 0:00:06]} c5 {[%emt 0:00:05]} 3. d5 {[%emt 0:00:12]} b5 {[%emt 0:00:05]} 4. cxb5 {[%emt 0:00:11]} a6 {[%emt 0:00:05]} 5. e3 {[%emt 0:00:17]} axb5 {[%emt 0:00:50]} 6. Bxb5 {[%emt 0:00:16]} Qa5+ {[%emt 0:00:08]} 7. Nc3 {[%emt 0:00:12]} Bb7 {[%emt 0:00:06]} 8. Bd2 {[%emt 0:00:38][%cal Bc1d2,Bd2c3,Bc3g7,Bg7e5,Be5g3][%mdl 32]} Qb6 {[%emt 0:00:18]} 9. Nf3 {[%emt 0:01:06] Threatens to win with Qb3.} Nxd5 {[%emt 0:00:45] A57: Benko/Volga Gambit.} 10. Nxd5 {[%emt 0:00:12]} Bxd5 {[%emt 0:00:10]} 11. a4 {[%emt 0:00:14]} e6 {[%emt 0:00:38] The position is equal.} 12. Bc3 {[%emt 0:00:52]} Be7 {[%emt 0:01:30]} 13. Bxg7 {[%emt 0:08:10]} Rg8 {[%emt 0:00:11]} 14. Be5 {[%emt 0:00:17] [#]} Rxg2 $146 {[%emt 0:08:28]} ({Predecessor:} 14... Nc6 15. Bg3 Qa5+ 16. Ke2 Rg4 17. Ne1 Rb4 18. Nd3 Rb3 19. Re1 Na7 20. e4 Nxb5 21. exd5 {0-1 (55) Van der Werf,M (2310)-Nicholson,J (2285) Lugano 1989}) 15. Bg3 $1 {[%emt 0:00:23] aiming for Kf1.} Qb7 $1 {[%emt 0:00:21]} 16. Be2 {[%emt 0:00:26]} Bb3 $36 {[%emt 0:00:30][%mdl 2048] Black is pushing.} (16... Qxb2 17. Rb1 Qc3+ 18. Kf1 Rxg3 19. hxg3 $16) 17. Qd3 {[%emt 0:04:20] And now Kf1 would win.} Bd5 $1 {[%emt 0:05:52]} ({Much less strong is} 17... Rxa4 18. Rxa4 Bxa4 19. Qxh7 (19. Kf1 Rxg3 20. hxg3 h6 $16) 19... Qxb2 20. Kf1 Rxg3 21. hxg3 $18) (17... Bxa4 $2 18. Qxh7 (18. Kf1 Rxg3 19. hxg3 Bb5 $17) 18... d6 19. Kf1 Rxg3 20. hxg3 $18) 18. e4 $2 {[%emt 0:13:35]} (18. Qd1 $1 $11) 18... Bxe4 $19 {[%emt 0:02:40]} 19. Qe3 {[%emt 0:00:38] [#]} Qxb2 $1 {[%emt 0:11:27]} 20. Rd1 {[%emt 0:02:06]} (20. Qxe4 Qxa1+) 20... Rxa4 {[%emt 0:02:50]} 21. Kf1 {[%emt 0:00:36] [#]} Rxg3 {[%emt 0:00:23]} 22. hxg3 {[%emt 0:00:06]} d5 {[%emt 0:02:14]} 23. Rh5 {[%emt 0:13:40]} Nc6 {[%emt 0:06:19] Against Ne5} 24. Ng5 {[%emt 0:02:19]} Bg6 {[%emt 0:02:12]} (24... Bf5 $19 {has better winning chances.} 25. Nf3 Bg6) 25. Nxe6 $17 {[%emt 0:02:15][%cal Oh5d5] [#]} fxe6 {[%emt 0:02:06]} ({And not} 25... Bxh5 26. Bxh5 Ra1 27. Nc7+ Kd8 28. Nxd5 $11) (25... Re4 $1 $19 {[%cal Re4e3]} 26. Nc7+ Kd8 27. Rhxd5+ Kxc7 28. Rd7+ Kb6) 26. Qxe6 $14 {[%emt 0:00:38] The board is on fire.} Nd4 {[%emt 0:10:11][%mdl 8192] [#] Black cannot hold the game after this.} (26... Ra2 $14 27. Qg8+ Bf8 28. Qe6+ Be7 29. Qg8+ Bf8 30. Qe6+ Be7) 27. Qg8+ $1 $18 {[%emt 0:00:49]} Kd7 {[%emt 0:05:13]} 28. Bg4+ {[%emt 0:00:39]} Kd6 {[%emt 0:00:46]} 29. Rxd5+ {[%emt 0:00:17]} Kc6 {[%emt 0:00:24]} 30. Qc8+ {[%emt 0:00:00]} Kb5 {[%emt 0:00:00]} 31. Qb7+ {[%emt 0:01:19]} Kc4 {[%emt 0:02:35]} 32. Qxb2 {[%emt 0:00:08]} Kxd5 {[%emt 0:00:08]} 33. Qb3+ {[%emt 0:00:14] Weighted Error Value: White=0.21 (precise) /Black=0.54} 1-0

[Event "2nd Bassano Easter 2022"]
[Site "Bassano del Grappa"]
[Date "2022.04.15"]
[Round "1.7"]
[White "Okuyaz, Duru"]
[Black "Nesterov, Arseniy"]
[Result "0-1"]
[ECO "C70"]
[WhiteElo "2094"]
[BlackElo "2522"]
[Annotator "TA"]
[PlyCount "68"]
[EventDate "2022.04.14"]
[EventType "swiss"]
[EventCountry "ITA"]
[SourceTitle "playchess.com"]
[Source "ChessBase"]
[SourceQuality "1"]
[TimeControl "30/3600+30:1800+30"]

{[%evp 15,68,45,51,-22,-10,-14,-18,-50,-50,-66,-67,-82,-20,-18,-13,-24,-19,-19,-6,-34,-35,-149,-158,-207,-206,-290,-303,-310,-294,-435,-324,-300,-290,-365,-353,-340,-325,-344,-337,-530,-489,-508,-524,-772,-753,-841,-824,-1722,-1684,-29955,-6997,-29986,-29987,-6859,-2989]} 1. e4 {[%emt 0:00:03]} e5 {[%emt 0:00:10]} 2. Nf3 {[%emt 0:00:06]} Nc6 {[%emt 0:00:06]} 3. Bb5 {[%emt 0:00:05][%cal Bf1b5,Bb5a4,Ba4b3][%mdl 32]} a6 {[%emt 0:00:16]} 4. Ba4 {[%emt 0:00:07]} b5 {[%emt 0:00:12]} 5. Bb3 {[%emt 0:00:05]} Na5 {[%emt 0:00:04]} 6. O-O {[%emt 0:00:11]} d6 {[%emt 0:00:05]} 7. d4 {[%emt 0:00:15]} exd4 {[%emt 0:00:05] 7...exd4 is better than 7...Nxb3.} 8. Nxd4 {[%emt 0:02:02]} Bb7 {[%emt 0:00:15]} 9. Nf5 {[%emt 0:00:09] C70: Ruy Lopez: 3...a6 4 Ba4, Norwegian and Delayed Schliemann.} ({Better is} 9. a4 $14) 9... g6 $11 {[%emt 0:06:09]} 10. Ne3 {[%emt 0:00:08]} Bg7 {[%emt 0:01:49] [#]} 11. c4 $146 {[%emt 0:05:06] The position is equal.} ({Predecessor:} 11. Bd2 Nxb3 12. axb3 Bxe4 13. Re1 Ne7 14. Bc3 Be5 15. Ng4 f5 16. Nf6+ Kf7 17. Nxe4 fxe4 18. Rxe4 {0-1 (55) Polgar,J (2680)-Mamedyarov,S (2719) Moscow 2009}) 11... Nf6 {[%emt 0:04:37][%cal Bg8f6,Bf6d7,Bd7e5,Be5c6,Bc6d4][%mdl 32]} 12. Re1 {[%emt 0:05:51]} O-O {[%emt 0:00:42]} 13. f3 {[%emt 0:03:09]} c5 {[%emt 0:12:30]} (13... Nd7 $17) 14. Nc3 {[%emt 0:02:08]} b4 {[%emt 0:00:29]} 15. Ne2 {[%emt 0:11:43]} Nxb3 {[%emt 0:00:32]} (15... Nd7 {looks sharper.} 16. Qc2 Qh4 17. Rf1 Nxb3 18. axb3 Rae8) 16. Qxb3 {[%emt 0:02:32]} Nd7 {[%emt 0:01:25]} 17. Rd1 {[%emt 0:01:54]} Ne5 {[%emt 0:04:20]} 18. f4 {[%emt 0:03:43] [#] Black keeps a firm grip on the game.} (18. a3 $15) 18... Nc6 $1 $17 {[%emt 0:03:08]} (18... Bxe4 19. fxe5 Bxe5 20. Ng4 $16) 19. e5 {[%emt 0:00:24] [#]} (19. Nd5 $17) 19... Qh4 $1 $19 {[%emt 0:00:07]} (19... Na5 20. Qc2 Qh4 21. exd6 $17) 20. exd6 {[%emt 0:06:17]} (20. Nd5 {keeps fighting.} dxe5 21. Qf3) 20... Nd4 {[%emt 0:00:42]} 21. Nxd4 {[%emt 0:04:01]} Bxd4 {[%emt 0:00:06] This bishop pair is nice.} (21... cxd4 22. Nd5 $11) 22. Kh1 {[%emt 0:02:57]} (22. Qc2 $142) 22... Rfe8 {[%emt 0:01:53][%cal Bf8e8,Be8e7,Be7e2,Be2d2,Bd2f2,Bf2f1,Bf1a1][%mdl 32] Threatens to win with ...Qf2.} 23. d7 {[%emt 0:04:04]} Re7 {[%emt 0:00:43] And now ...Qf2 would win.} 24. Bd2 {[%emt 0:03:11]} Qf2 {[%emt 0:07:40][%cal Re7e3]} ({Don't blunder} 24... Rxd7 $2 25. Nd5 $17) 25. Nd5 {[%emt 0:05:08]} Bxd5 {[%emt 0:00:14]} ({Weaker is} 25... Rxd7 26. Be3 Bxe3 27. Qxe3 Qxe3 28. Nxe3 $17) (25... Re2 26. Qf3 Qxf3 27. gxf3 $17) 26. cxd5 {[%emt 0:00:11]} Re2 {[%emt 0:00:05][%csl Ge2][%cal Rf2g2]} ({And not} 26... Rxd7 27. a3 $17) 27. Qh3 {[%emt 0:01:17]} (27. Qg3 $142 Rxd2 28. Re1) 27... Rxd2 {[%emt 0:02:19]} 28. Rf1 {[%emt 0:01:53]} Qe2 {[%emt 0:02:59]} 29. Rfe1 {[%emt 0:02:47]} Qb5 {[%emt 0:00:05]} 30. Re7 {[%emt 0:00:00]} Rf2 {[%emt 0:00:00][%cal Ob5f1]} 31. g3 {[%emt 0:02:47]} Qd3 {[%emt 0:04:35]} 32. Re8+ {[%emt 0:05:51]} Kg7 {[%emt 0:00:13] ( -> ...Qf3+)} 33. Qg4 {[%emt 0:01:00]} Rf1+ {[%emt 0:00:13]} 34. Kg2 {[%emt 0:00:06]} Rxa1 {[%emt 0:00:07] Weighted Error Value: White=0.97/Black=0.11 (very precise)} 0-1

[Event "2nd Bassano Easter 2022"]
[Site "Bassano del Grappa"]
[Date "2022.04.15"]
[Round "1.9"]
[White "Bouska, Jiri"]
[Black "Nikolov, Momchil"]
[Result "0-1"]
[ECO "B50"]
[WhiteElo "2041"]
[BlackElo "2501"]
[Annotator "TA"]
[PlyCount "54"]
[EventDate "2022.04.14"]
[EventType "swiss"]
[EventCountry "ITA"]
[SourceTitle "playchess.com"]
[Source "ChessBase"]
[SourceQuality "1"]
[TimeControl "30/3600+30:1800+30"]

{[%evp 12,54,-1,1,27,-18,4,-18,-7,-45,-49,-67,-48,-90,-81,-156,-127,-129,-132,-128,-130,-129,-139,-177,-166,-170,-171,-177,-193,-190,-154,-326,-308,-428,-266,-331,-227,-249,-221,-236,-238,-339,-305,-882,-839]} 1. e4 {[%emt 0:00:03]} c5 {[%emt 0:00:18]} 2. Nf3 {[%emt 0:00:04]} e6 {[%emt 0:00:53]} 3. b3 {[%emt 0:00:16]} d6 {[%emt 0:01:45]} 4. Bb2 {[%emt 0:00:06]} Nf6 {[%emt 0:00:15]} 5. Nc3 {[%emt 0:01:06]} Be7 {[%emt 0:03:34]} 6. d4 {[%emt 0:01:00]} cxd4 {[%emt 0:00:51]} 7. Nxd4 {[%emt 0:00:30]} a6 {[%emt 0:01:26] B50: Sicilian: 2...d6, Miscellaneous.} 8. Qf3 {[%emt 0:02:12]} Qc7 {[%emt 0:03:04] [#]} 9. Bd3 $146 {[%emt 0:06:00]} ({Predecessor:} 9. O-O-O Nc6 10. Nxc6 Qxc6 11. Bd3 O-O 12. Rhe1 b5 13. a3 Bb7 14. Qh3 Qc5 15. f4 {½-½ (32) Postupa,P (2244)-Hora,M (2156) Czech Republic 2018}) 9... Nbd7 {[%emt 0:02:47] The position is equal.} 10. O-O-O {[%emt 0:04:58]} b5 {[%emt 0:04:21][%cal Bb7b5,Bb5b4][%mdl 32]} 11. Qg3 {[%emt 0:09:09]} b4 {[%emt 0:10:54]} (11... Qc5 $5 {[%cal Rc5d4]} 12. Nce2 (12. Qxg7 $2 Rg8 $19) 12... g6 $11) 12. Nce2 {[%emt 0:03:15]} (12. Qxg7 $2 Rg8 13. Ncb5 axb5 $19) 12... O-O {[%emt 0:01:50]} 13. f4 {[%emt 0:02:05]} ({Better is} 13. Kb1) 13... Bb7 {[%emt 0:04:59] White must now prevent ...Nc5.} 14. e5 {[%emt 0:03:24]} dxe5 {[%emt 0:01:23]} 15. fxe5 {[%emt 0:00:26]} Ne4 $36 {[%emt 0:01:37][%mdl 2048] Black is really pushing.} 16. Bxe4 {[%emt 0:05:56]} Bxe4 {[%emt 0:00:07]} 17. Qg4 {[%emt 0:01:36]} Bg6 {[%emt 0:02:20] A strong pair of Bishops.} ({But not} 17... Qxe5 {[#]} 18. Nxe6 $1 Bf5 19. Bxe5 $14) 18. Nf4 {[%emt 0:01:30]} Nxe5 {[%emt 0:01:32]} 19. Qg3 {[%emt 0:01:20]} Rac8 {[%emt 0:02:16][%cal Rg6c2]} 20. Nxg6 {[%emt 0:00:27]} Nxg6 {[%emt 0:00:27]} ({Weaker is} 20... fxg6 21. Rd2 Rf6 22. Rhd1 $11) 21. Qd3 $2 {[%emt 0:02:48] [#]} (21. Qxc7 $17 Rxc7 22. Kb1) 21... Rfd8 {[%emt 0:02:26][%cal Bf8d8,Bd8d5,Bd5d1][%mdl 32]} 22. Qe2 {[%emt 0:01:35]} Bf6 {[%emt 0:03:13]} 23. g3 {[%emt 0:02:22]} Rd5 {[%emt 0:03:07]} ({Not} 23... Qc5 $2 24. Nf3 $19) 24. Kb1 {[%emt 0:01:50][%cal Od4e6]} Rcd8 {[%emt 0:03:25]} 25. Nf3 {[%emt 0:01:03]} Bxb2 {[%emt 0:01:39]} 26. Kxb2 {[%emt 0:00:16]} (26. Rxd5 {was necessary.} Rxd5 27. Kxb2) 26... Ne7 $19 {[%emt 0:01:41]} 27. Ne5 $2 {[%emt 0:00:59]} (27. Rd3) 27... Rxd1 {[%emt 0:00:43] White got outplayed after the opening.  Weighted Error Value: White=0.54/Black=0.27 (precise)} 0-1

[Event "2nd Bassano Easter 2022"]
[Site "Bassano del Grappa"]
[Date "2022.04.15"]
[Round "1.10"]
[White "Abel, Dennes"]
[Black "Chennaoui, Yasin"]
[Result "1-0"]
[ECO "A54"]
[WhiteElo "2442"]
[BlackElo "2014"]
[Annotator "RC"]
[PlyCount "141"]
[EventDate "2022.04.14"]
[EventType "swiss"]
[EventCountry "ITA"]
[SourceTitle "playchess.com"]
[Source "ChessBase"]
[SourceQuality "1"]
[TimeControl "30/3600+30:1800+30"]

1. d4 {[%emt 0:00:04]} d6 {[%emt 0:00:33]} 2. Nf3 {[%emt 0:00:09]} Nf6 {[%emt 0:00:05]} 3. c4 {[%emt 0:00:07]} Nbd7 {[%emt 0:00:04]} 4. Nc3 {[%emt 0:01:00]} e5 {[%emt 0:00:06]} 5. Bg5 {[%emt 0:00:18]} Be7 {[%emt 0:00:08]} 6. e3 {[%emt 0:00:09]} O-O {[%emt 0:00:28]} 7. Qc2 {[%emt 0:00:59]} c6 {[%emt 0:01:10]} 8. Rd1 {[%emt 0:01:24]} Qa5 {[%emt 0:03:20]} 9. Bh4 {[%emt 0:02:13]} Re8 {[%emt 0:02:25]} 10. Be2 {[%emt 0:00:54]} Nf8 {[%emt 0:05:54]} 11. h3 {[%emt 0:08:38]} Ng6 {[%emt 0:03:22]} 12. Bg3 {[%emt 0:01:28]} Bd7 {[%emt 0:07:10]} 13. O-O {[%emt 0:01:52]} Rad8 {[%emt 0:00:56]} 14. a3 {[%emt 0:04:54]} Qc7 {[%emt 0:10:36]} 15. c5 {[%emt 0:05:12]} Be6 {[%emt 0:07:20]} 16. cxd6 {[%emt 0:01:41]} Bxd6 {[%emt 0:00:21]} 17. dxe5 {[%emt 0:00:17]} Nxe5 {[%emt 0:00:19]} 18. Rxd6 {[%emt 0:03:32]} Qxd6 {[%emt 0:01:35]} 19. Bxe5 {[%emt 0:01:18]} Qe7 {[%emt 0:00:31]} 20. Bg3 {[%emt 0:04:31]} Nd5 {[%emt 0:06:50]} 21. Nd4 {[%emt 0:02:59]} Nxc3 {[%emt 0:03:50]} 22. Qxc3 {[%emt 0:00:16]} Qf6 {[%emt 0:03:17]} 23. Rc1 {[%emt 0:01:05]} Bc8 {[%emt 0:01:58]} 24. Bf3 {[%emt 0:01:56]} h5 {[%emt 0:07:14]} 25. Bxh5 {[%emt 0:03:11]} Qh6 {[%emt 0:00:54]} 26. Bf3 {[%emt 0:01:11]} a5 {[%emt 0:00:36]} 27. Bc7 {[%emt 0:03:11]} Rd7 {[%emt 0:00:30]} 28. Bf4 {[%emt 0:00:30]} Qf6 {[%emt 0:01:00]} 29. Bg4 {[%emt 0:01:18]} Rd5 {[%emt 0:00:15]} 30. Bxc8 {[%emt 0:00:00]} Rxc8 {[%emt 0:00:00]} 31. b4 {[%emt 0:06:17]} axb4 {[%emt 0:00:41]} 32. axb4 {[%emt 0:02:16]} b6 {[%emt 0:00:53]} 33. Qc4 {[%emt 0:01:42]} Rcd8 {[%emt 0:02:36]} 34. Nxc6 {[%emt 0:03:26]} Rd1+ {[%emt 0:00:11]} 35. Kh2 {[%emt 0:00:27]} b5 {[%emt 0:02:51]} 36. Qc3 {[%emt 0:03:14]} Qxc3 {[%emt 0:04:36]} 37. Rxc3 {[%emt 0:00:10]} R8d2 {[%emt 0:00:16]} 38. Bg3 {[%emt 0:01:10]} Rb2 {[%emt 0:00:38]} 39. Rc5 {[%emt 0:01:55]} Rf1 {[%emt 0:02:41]} 40. h4 {[%emt 0:03:40]} g6 {[%emt 0:04:45]} 41. Rxb5 {[%emt 0:01:20]} Rbb1 {[%emt 0:00:26]} 42. Rb8+ {[%emt 0:02:38]} Kg7 {[%emt 0:00:15]} 43. Be5+ {[%emt 0:00:19]} f6 {[%emt 0:00:11]} 44. Rb7+ {[%emt 0:00:07]} Kf8 {[%emt 0:00:43]} 45. Bxf6 {[%emt 0:00:48]} Rxf2 {[%emt 0:00:10]} 46. Ne5 {[%emt 0:00:55]} Rxf6 {[%emt 0:00:20]} 47. Nd7+ {[%emt 0:00:05]} Ke7 {[%emt 0:00:06]} 48. Nxf6+ {[%emt 0:00:05]} Kxf6 {[%emt 0:00:06]} 49. Kg3 {[%emt 0:00:24]} Re1 {[%emt 0:01:23]} 50. Kf2 {[%emt 0:00:10]} Rh1 {[%emt 0:00:04]} 51. b5 {[%emt 0:00:28]} Rxh4 {[%emt 0:00:08]} 52. b6 {[%emt 0:00:06]} Rb4 {[%emt 0:00:16]} 53. Rb8 {[%emt 0:00:07]} Kf5 {[%emt 0:01:12]} 54. Kf3 {[%emt 0:00:07]} Rb2 {[%emt 0:00:59]} 55. b7 {[%emt 0:00:25]} Kg5 {[%emt 0:00:04]} 56. e4 {[%emt 0:00:47]} Rb3+ {[%emt 0:00:05]} 57. Kf2 {[%emt 0:00:08]} Kg4 {[%emt 0:00:06]} 58. e5 {[%emt 0:00:06]} g5 {[%emt 0:00:17]} 59. e6 {[%emt 0:00:06]} Rb2+ {[%emt 0:00:05]} 60. Ke3 {[%emt 0:00:07]} Rb6 {[%emt 0:00:18]} 61. Kd4 {[%emt 0:00:26]} Rxe6 {[%emt 0:00:12]} 62. Rd8 {[%emt 0:00:27]} Rb6 {[%emt 0:00:10]} 63. b8=Q {[%emt 0:00:07]} Rxb8 {[%emt 0:00:05]} 64. Rxb8 {[%emt 0:00:05]} Kg3 {[%emt 0:00:08]} 65. Ke3 {[%emt 0:00:07]} g4 {[%emt 0:00:49]} 66. Rg8 {[%emt 0:00:07]} Kh2 {[%emt 0:00:18]} 67. Rxg4 {[%emt 0:00:19]} Kg1 {[%emt 0:00:03]} 68. Kf3 {[%emt 0:00:11]} Kh1 {[%emt 0:00:23]} 69. Kg3 {[%emt 0:00:11]} Kg1 {[%emt 0:00:15]} 70. Rf4 {[%emt 0:00:04]} Kh1 {[%emt 0:00:05]} 71. Rf1# {[%emt 0:00:06]} 1-0

[Event "2nd Bassano Easter 2022"]
[Site "Bassano del Grappa"]
[Date "2022.04.15"]
[Round "2.1"]
[White "Bernadskiy, Vitaliy"]
[Black "Nandhidhaa, P V"]
[Result "1-0"]
[ECO "A20"]
[WhiteElo "2601"]
[BlackElo "2380"]
[Annotator "TA"]
[PlyCount "49"]
[EventDate "2022.04.14"]
[EventType "swiss"]
[EventCountry "ITA"]
[SourceTitle "playchess.com"]
[Source "ChessBase"]
[SourceQuality "1"]
[TimeControl "30/3600+30:1800+30"]

{[%evp 11,49,19,8,8,6,7,5,0,0,-2,0,0,38,33,39,33,35,36,72,85,80,92,186,126,130,118,393,400,804,802,1014,1007,1691,1632,2801,2737,2068,1772,29991,29992]} 1. c4 {[%emt 0:00:04]} e5 {[%emt 0:00:51]} 2. g3 {[%emt 0:00:25]} Nf6 {[%emt 0:00:06]} 3. Bg2 {[%emt 0:00:04]} d5 {[%emt 0:00:05]} 4. cxd5 {[%emt 0:00:03]} Nxd5 {[%emt 0:00:04]} 5. Nf3 {[%emt 0:00:16]} Nc6 {[%emt 0:00:09]} 6. O-O {[%emt 0:00:34]} Nb6 {[%emt 0:00:11]} 7. b3 {[%emt 0:01:13] A20: English Opening: 1...e5.} Be6 {[%emt 0:00:40] is more profitable than 7...Be7 at the moment.} 8. Bb2 {[%emt 0:00:19]} f6 $1 {[%emt 0:00:05]} 9. Qc1 {[%emt 0:06:36] The position is equal.} Qd7 {[%emt 0:01:10]} 10. Rd1 {[%emt 0:01:57]} O-O-O {[%emt 0:02:04]} 11. Nc3 {[%emt 0:02:05][%cal Od2d4]} Kb8 {[%emt 0:04:59]} 12. d4 $1 {[%emt 0:02:37]} Nxd4 {[%emt 0:12:12]} 13. Nxd4 {[%emt 0:00:36]} exd4 {[%emt 0:00:07]} 14. Ne4 {[%emt 0:00:39]} Qb5 {[%emt 0:08:23]} 15. Bxd4 {[%emt 0:00:34]} Be7 {[%emt 0:01:05]} (15... Qxe2 $2 16. Rd2 Qb5 17. Bxb6 $18) 16. Nc3 {[%emt 0:03:35] [#]} Qh5 $146 {[%emt 0:04:32] [#]} (16... Qf5 $16) ({Predecessor:} 16... Qf5 17. a4 a6 18. a5 Nd5 19. Na4 Nb4 20. Ba7+ Kxa7 21. Qxc7 Nd5 22. Bxd5 Rxd5 23. Qxe7 {½-½ (34) Iturrizaga Bonelli,E (2607)-Le,Q (2709) chess24.com INT 2021}) 17. Qe3 {[%emt 0:04:52]} (17. a4 $1 $18) 17... Qf5 $16 {[%emt 0:02:40] Prevents Nb5.} 18. Be4 $40 {[%emt 0:01:18][%mdl 128] White attacks with force.} Qh3 {[%emt 0:00:51][%mdl 8192] This costs Black the game.} (18... Qa5 $16 {is a better defense.}) 19. Nb5 $18 {[%emt 0:00:24]} Rhe8 {[%emt 0:06:19] [#]} (19... Rxd4 $142 20. Nxd4 (20. Qxd4 Qh5 $16) 20... Bd5 21. Bxd5 Nxd5) 20. Nxc7 $1 {[%emt 0:07:09][%mdl 512]} Kxc7 {[%emt 0:00:43]} (20... Qh6 21. Qxh6) 21. Qf4+ {[%emt 0:00:47]} Rd6 {[%emt 0:03:08]} 22. Bxb6+ {[%emt 0:00:53]} axb6 {[%emt 0:00:08]} 23. Rac1+ {[%emt 0:00:37][%mdl 64] Deflection} ({Don't go for} 23. Bg2 $2 Qf5 24. Rac1+ Kb8 $19) 23... Kd7 {[%emt 0:00:08]} 24. Bxb7 {[%emt 0:03:35] White wants to mate with Bc6+.} Bf7 {[%emt 0:04:00]} 25. Bc6+ {[%emt 0:00:24] Weighted Error Value: White=0.05 (flawless) /Black=0.80} 1-0

[Event "2nd Bassano Easter 2022"]
[Site "Bassano del Grappa"]
[Date "2022.04.15"]
[Round "2.2"]
[White "Hilverda, Alexander"]
[Black "Basso, Pier Luigi"]
[Result "0-1"]
[ECO "E90"]
[WhiteElo "2282"]
[BlackElo "2600"]
[Annotator "TA"]
[PlyCount "74"]
[EventDate "2022.04.14"]
[EventType "swiss"]
[EventCountry "ITA"]
[SourceTitle "playchess.com"]
[Source "ChessBase"]
[SourceQuality "1"]
[TimeControl "30/3600+30:1800+30"]

{[%evp 19,74,61,74,70,109,109,116,109,109,102,102,103,100,75,75,75,71,72,76,76,76,76,76,33,37,6,0,-69,-17,-78,-58,-76,-73,-72,-81,-125,-116,-263,-237,-347,-341,-370,-353,-378,-362,-416,-402,-481,-479,-556,-550,-708,-692,-1104,-1093,-1056,-627]} 1. d4 {[%emt 0:00:04]} g6 {[%emt 0:00:35]} 2. c4 {[%emt 0:00:06]} Bg7 {[%emt 0:00:05]} 3. Nf3 {[%emt 0:00:05]} c5 {[%emt 0:00:51]} 4. d5 {[%emt 0:01:01]} d6 {[%emt 0:01:28]} 5. e4 {[%emt 0:00:23]} Nf6 {[%emt 0:00:58]} 6. Nc3 {[%emt 0:00:17]} O-O {[%emt 0:00:22]} 7. h3 {[%emt 0:00:49]} e6 {[%emt 0:00:17]} 8. Bd3 {[%emt 0:00:19]} Na6 {[%emt 0:01:10]} 9. O-O {[%emt 0:00:23]} Nc7 {[%emt 0:00:26]} 10. Re1 {[%emt 0:00:50]} a6 {[%emt 0:04:21][%cal Ob7b5]} 11. a4 {[%emt 0:02:27][%cal Ba2a4,Ba4a5][%mdl 32] Against b5. E90: King's Indian: Classical: Early deviations and 6 h3.} e5 $5 {[%emt 0:00:18][%mdl 4] Leaves trodden paths.} 12. a5 {[%emt 0:03:51] [#]} Rb8 $146 {[%emt 0:00:14]} ({Predecessor:} 12... Bd7 13. Rb1 Nce8 14. b4 cxb4 15. Rxb4 Qxa5 16. Qb3 b5 17. cxb5 axb5 18. Nxb5 Nh5 {½-½ (38) Kezin,R (2455)-Kryakvin,D (2583) Sochi 2017}) 13. Na4 {[%emt 0:02:04] White is better.} Bd7 {[%emt 0:00:08]} 14. b4 {[%emt 0:06:04]} Bxa4 {[%emt 0:05:46]} 15. Qxa4 {[%emt 0:00:51]} Nd7 {[%emt 0:00:10]} 16. Ba3 {[%emt 0:04:30]} cxb4 {[%emt 0:05:04]} 17. Bxb4 {[%emt 0:00:52]} Ne8 {[%emt 0:01:24][%cal Bc7e8,Be8f6,Bf6h5,Bh5f6][%mdl 32]} 18. Qa3 {[%emt 0:07:13]} Qc7 {[%emt 0:00:33]} 19. Nd2 {[%emt 0:02:09]} Nc5 {[%emt 0:01:36]} 20. Bc2 {[%emt 0:01:57]} Nf6 {[%emt 0:01:22]} 21. Ba4 {[%emt 0:10:03]} Rfc8 {[%emt 0:00:56]} 22. Kh2 {[%emt 0:08:49]} Bh6 {[%emt 0:01:19]} 23. f3 {[%emt 0:02:37]} (23. Qf3 $11 Nfd7 24. Bxd7 Qxd7 25. Reb1) 23... Bf4+ {[%emt 0:00:54]} (23... b5 $15 24. axb6 Qxb6) 24. Kh1 {[%emt 0:02:28]} (24. g3 $1 $11 {keeps the balance.} Bxd2 25. Bxd2) 24... Qd8 {[%emt 0:03:59]} 25. Nf1 {[%emt 0:03:42] [#]} Nh5 $1 {[%emt 0:00:35] Inhibits g3.} (25... Nxa4 26. Bxd6 Rxc4 27. Bxb8 (27. Be7 Qxa5 28. Bxf6 Qb6 $15) 27... Qxb8 28. Qb3 $11) 26. Bc2 {[%emt 0:06:37]} Qg5 {[%emt 0:01:29]} 27. g4 {[%emt 0:02:10]} Nf6 {[%emt 0:01:41] Strongly threatening ...Kg7. &Nero is more active. Pair of Knights!} 28. Rad1 {[%emt 0:00:50] Loses the game.} (28. Re2 $17) 28... h5 {[%emt 0:00:20] aiming for ...Qh4.} (28... Qh4 29. Kg2 $17) 29. Bd2 {[%emt 0:00:25]} (29. Re2 $142) 29... hxg4 $19 {[%emt 0:00:12]} 30. Bxf4 {[%emt 0:00:00]} exf4 {[%emt 0:00:00]} ({Not} 30... Qxf4 31. hxg4 Nxg4 32. Kg1 $19) 31. fxg4 {[%emt 0:03:10]} Kg7 {[%emt 0:02:08]} 32. Nh2 {[%emt 0:04:25][%cal Oe4e5]} Rh8 {[%emt 0:01:09] [#] Threatens to win with ...Rh4.} 33. Kg2 {[%emt 0:11:14]} ({But not} 33. e5 Nxg4 34. Re2 (34. hxg4 $2 Rxh2+ 35. Kxh2 Rh8+ 36. Qh3 Qxg4 $19) 34... Nxe5 $19) 33... Ncd7 {[%emt 0:01:51] Black is clearly winning.} 34. Rh1 {[%emt 0:07:54]} Qh4 {[%emt 0:01:41] White must now prevent ...Ne5.} 35. Qc3 {[%emt 0:02:19]} Ne5 {[%emt 0:00:25] And now ...Rbc8 would win.} 36. Rde1 {[%emt 0:01:53]} Rbc8 {[%emt 0:00:31]} 37. Bb3 {[%emt 0:00:07]} Nh7 {[%emt 0:02:49] Weighted Error Value: White=0.50/Black=0.06 (flawless)} 0-1